fUSD/lending_fUSD_20240521
["ID","MTS","AMOUNT","RATE_DAILY","PERIOD"]
[327665130,1716291060526,-500.0,0.00033205,6]
[327665131,1716291060535,-1642.84,0.00033205,6]
[327665132,1716291060544,-500.0,0.00033205,6]
[327665133,1716291060554,-1214.58,0.00033205,6]
[327665134,1716291060564,-2780.51,0.00033205,6]
[327665135,1716291060574,-500.0,0.00033205,6]
[327665136,1716291060583,-1043.71,0.00033205,6]
[327665137,1716291060593,-9822.52,0.00033205,6]
[327665138,1716291060602,-588.77108486,0.00033205,6]
[327665139,1716291060614,-4048.99,0.00033205,6]
[327665140,1716291060626,-1329.98,0.00033205,6]
[327665141,1716291060636,-500.0,0.00033205,6]
[327665142,1716291060645,-4258.01,0.00033205,6]
[327665143,1716291060655,-500.0,0.00033205,6]
[327665144,1716291060665,-500.0,0.00033205,6]
[327665145,1716291060675,-4740.41,0.00033205,6]
[327665146,1716291060684,-500.0,0.00033205,6]
[327665147,1716291060695,-151.65055707,0.00033213,2]
[327665148,1716291060704,-500.0,0.00033313,6]
[327665149,1716291060715,-500.0,0.00033313,6]
[327665150,1716291060724,-520.83,0.00033313,6]
[327665151,1716291060734,-1056.66,0.00033313,6]
[327665152,1716291060743,-177.88,0.00033313,6]
[327665153,1716291060752,-616.0,0.00033313,6]
[327665154,1716291060765,-500.0,0.00033313,6]
[327665155,1716291060774,-500.0,0.00033313,6]
[327665156,1716291060783,-500.0,0.00033313,6]
[327665157,1716291060793,-500.0,0.00033313,6]
[327665158,1716291060803,-539.3,0.00033313,6]
[327665159,1716291060812,-579.47,0.00033313,6]
[327665160,1716291060822,-500.0,0.00033313,6]
[327665161,1716291060831,-576.73,0.00033313,6]
[327665162,1716291060840,-800.63,0.00033313,6]
[327665163,1716291060849,-500.0,0.00033313,6]
[327665164,1716291060859,-500.0,0.00033313,6]
[327665165,1716291060868,-500.0,0.00033313,6]
[327665166,1716291060877,-937.76,0.00033313,6]
[327665167,1716291060886,-612.13,0.00033313,6]
[327665168,1716291060895,-511.23,0.00033313,6]
[327665169,1716291060904,-500.0,0.00033313,6]
[327665170,1716291060914,-500.0,0.00033313,6]
[327665171,1716291060923,-581.57,0.00033313,6]
[327665172,1716291060932,-597.74,0.00033313,6]
[327665173,1716291060941,-883.63,0.00033313,6]
[327665174,1716291060950,-924.94,0.00033313,6]
[327665175,1716291060959,-500.0,0.00033313,6]
[327665176,1716291060968,-500.0,0.00033313,6]
[327665177,1716291060977,-500.0,0.00033313,6]
[327665178,1716291060987,-500.0,0.00033313,6]
[327665179,1716291060996,-987.94,0.00033313,6]
[327665180,1716291061006,-500.0,0.00033313,6]
[327665181,1716291061019,-500.0,0.00033313,6]
[327665182,1716291061027,-500.0,0.00033313,6]
[327665183,1716291061036,-500.0,0.00033313,6]
[327665184,1716291061045,-1045.5,0.00033313,6]
[327665185,1716291061054,-751.32,0.00033313,6]
[327665186,1716291061064,-700.73,0.00033313,6]
[327665187,1716291061072,-500.0,0.00033313,6]
[327665188,1716291061082,-1091.22,0.00033313,6]
[327665189,1716291061091,-500.0,0.00033313,6]
[327665190,1716291061101,-500.0,0.00033313,6]
[327665191,1716291061110,-1245.83,0.00033313,6]
[327665192,1716291061120,-500.0,0.00033313,2]
[327665193,1716291061130,-500.0,0.00033313,6]
[327665194,1716291061140,-1292.22,0.00033313,6]
[327665195,1716291061149,-536.54,0.00033313,6]
[327665196,1716291061158,-1131.92,0.00033313,6]
[327665197,1716291061168,-795.14,0.00033313,6]
[327665198,1716291061178,-1521.49,0.00033313,6]
[327665199,1716291061187,-730.75,0.00033313,6]
[327665200,1716291061197,-603.53,0.00033313,6]
[327665201,1716291061206,-567.68,0.00033313,6]
[327665202,1716291061215,-1536.69,0.00033313,6]
[327665203,1716291061224,-500.0,0.00033313,6]
[327665204,1716291061233,-1458.22,0.00033313,6]
[327665205,1716291061243,-1097.6,0.00033313,6]
[327665206,1716291061253,-500.0,0.00033313,6]
[327665207,1716291061267,-546.67,0.00033313,6]
[327665208,1716291061276,-500.0,0.00033313,6]
[327665209,1716291061285,-500.0,0.00033313,6]
[327665210,1716291061294,-500.0,0.00033313,6]
[327665211,1716291061303,-796.42,0.00033313,6]
[327665212,1716291061312,-500.0,0.00033313,6]
[327665213,1716291061321,-500.0,0.00033313,6]
[327665214,1716291061330,-500.0,0.00033313,6]
[327665215,1716291061339,-1015.87,0.00033313,6]
[327665216,1716291061349,-500.0,0.00033313,6]
[327665217,1716291061358,-701.98,0.00033313,6]
[327665218,1716291061367,-500.0,0.00033313,6]
[327665219,1716291061377,-1047.65326289,0.00033313,6]
[327665220,1716291061388,-938.89,0.00033313,6]
[327665221,1716291061397,-723.74,0.00033313,6]
[327665222,1716291061406,-500.0,0.00033313,6]
[327665223,1716291061415,-632.17,0.00033313,6]
[327665224,1716291061424,-500.0,0.00033313,6]
[327665225,1716291061434,-500.0,0.00033313,6]
[327665226,1716291061444,-1277.94,0.00033313,6]
[327665227,1716291061453,-2417.43,0.00033313,6]
[327665228,1716291061462,-500.0,0.00033315,6]
[327665229,1716291061472,-500.0,0.00033315,6]
[327665230,1716291061481,-500.0,0.00033315,6]
[327665231,1716291061490,-500.0,0.00033315,6]
[327665232,1716291061499,-500.0,0.00033315,6]
[327665233,1716291061509,-500.0,0.00033315,6]
[327665234,1716291061518,-500.0,0.00033315,6]
[327665235,1716291061527,-544.37076063,0.00033315,6]
[327665236,1716291061536,-500.0,0.00033315,6]
[327665237,1716291061545,-500.0,0.00033315,6]
[327665238,1716291061554,-558.75,0.00033315,6]
[327665239,1716291061563,-500.0,0.00033315,6]
[327665240,1716291061572,-500.0,0.00033315,6]
[327665241,1716291061581,-720.94,0.00033315,6]
[327665242,1716291061590,-500.0,0.00033315,6]
[327665243,1716291061600,-814.2,0.00033315,6]
[327665244,1716291061610,-609.58,0.00033315,6]
[327665245,1716291061621,-500.0,0.00033315,6]
[327665246,1716291061636,-555.99,0.00033315,6]
[327665247,1716291061645,-500.0,0.00033315,6]
[327665248,1716291061654,-500.0,0.00033315,6]
[327665249,1716291061664,-658.46,0.00033315,6]
[327665250,1716291061673,-500.0,0.00033315,6]
[327665251,1716291061682,-500.0,0.00033315,6]
[327665252,1716291061691,-500.0,0.00033315,6]
[327665253,1716291061701,-500.0,0.00033315,6]
[327665254,1716291061711,-727.88,0.00033315,6]
[327665255,1716291061719,-624.53,0.00033315,6]
[327665256,1716291061728,-500.0,0.00033315,6]
[327665257,1716291061738,-729.98,0.00033315,6]
[327665258,1716291061747,-500.0,0.00033315,6]
[327665259,1716291061759,-500.0,0.00033315,6]
[327665260,1716291061768,-500.0,0.00033315,6]
[327665261,1716291061778,-500.0,0.00033315,6]
[327665262,1716291061787,-500.0,0.00033315,6]
[327665263,1716291061797,-500.0,0.00033315,6]
[327665264,1716291061806,-500.0,0.00033315,6]
[327665265,1716291061816,-524.21,0.00033315,6]
[327665266,1716291061825,-500.0,0.00033315,6]
[327665267,1716291061834,-636.27,0.00033315,6]
[327665268,1716291061843,-500.0,0.00033315,6]
[327665269,1716291061853,-645.16,0.00033315,6]
[327665270,1716291061862,-314.35437649,0.00033315,6]
[327665271,1716291061871,-593.38,0.00033315,6]
[327665272,1716291061880,-500.0,0.00033315,6]
[327665273,1716291061890,-500.0,0.00033315,6]
[327665274,1716291061899,-500.0,0.00033315,6]
[327665275,1716291061909,-587.01,0.00033315,6]
[327665276,1716291061918,-590.01,0.00033315,6]
[327665277,1716291061928,-500.0,0.00033315,6]
[327665278,1716291061937,-684.39,0.00033315,6]
[327665279,1716291061947,-725.91,0.00033315,6]
[327665280,1716291061956,-500.0,0.00033315,6]
[327665281,1716291061965,-1037.31,0.00033315,6]
[327665282,1716291061974,-677.3,0.00033315,6]
[327665283,1716291061983,-500.0,0.00033315,6]
[327665284,1716291061993,-500.0,0.00033315,6]
[327665285,1716291062002,-500.0,0.00033315,6]
[327665286,1716291062015,-522.21,0.00033315,6]
[327665287,1716291062024,-500.0,0.00033315,6]
[327665288,1716291062033,-500.0,0.00033315,6]
[327665289,1716291062042,-500.0,0.00033315,6]
[327665290,1716291062051,-500.0,0.00033315,6]
[327665291,1716291062060,-500.0,0.00033315,6]
[327665292,1716291062070,-752.52,0.00033315,6]
[327665293,1716291062079,-500.0,0.00033315,6]
[327665294,1716291062089,-609.27,0.00033315,6]
[327665295,1716291062098,-500.0,0.00033315,6]
[327665296,1716291062108,-500.0,0.00033315,6]
[327665297,1716291062117,-500.0,0.00033315,6]
[327665298,1716291062127,-500.0,0.00033315,6]
[327665299,1716291062138,-635.11,0.00033315,6]
[327665300,1716291062148,-610.04,0.00033315,6]
[327665301,1716291062158,-500.0,0.00033315,6]
[327665302,1716291062167,-671.13,0.00033315,6]
[327665303,1716291062177,-537.77,0.00033315,6]
[327665304,1716291062187,-588.72,0.00033315,6]
[327665305,1716291062196,-500.0,0.00033315,6]
[327665306,1716291062206,-500.0,0.00033315,6]
[327665307,1716291062215,-500.0,0.00033315,6]
[327665308,1716291062224,-500.0,0.00033315,6]
[327665309,1716291062233,-500.0,0.00033315,6]
[327665310,1716291062243,-904.19,0.00033315,6]
[327665311,1716291062253,-1042.11,0.00033315,6]
[327665312,1716291062266,-872.31,0.00033315,6]
[327665313,1716291062276,-500.0,0.00033315,6]
[327665314,1716291062285,-595.34,0.00033315,6]
[327665315,1716291062295,-565.2,0.00033315,6]
[327665316,1716291062304,-500.0,0.00033315,6]
[327665317,1716291062314,-960.27,0.00033315,6]
[327665318,1716291062323,-500.0,0.00033315,6]
[327665319,1716291062332,-558.22,0.00033315,6]
[327665320,1716291062341,-473.18231177,0.00033315,6]
[327665321,1716291062350,-593.51,0.00033315,6]
[327665322,1716291062360,-543.06,0.00033315,6]
[327665323,1716291062370,-500.0,0.00033315,6]
[327665324,1716291062379,-500.0,0.00033315,6]
[327665325,1716291062388,-500.0,0.00033315,6]
[327665326,1716291062398,-387.69012575,0.00033315,6]
[327665327,1716291063207,-1117.94999999,0.00027233,2]
[327665328,1716291063219,-4275.5914624,0.00027233,2]
[327665329,1716291063243,-306.03907373,0.00027233,2]
[327665330,1716291063254,-497.05695292,0.00032876,6]
[327665331,1716291063268,-2.94304708,0.00032876,6]
[327665332,1716291063278,-500.0,0.00032876,6]
[327665333,1716291063288,-40.96740534,0.00032986,6]
[327665334,1716291063300,-296.85259466,0.00032986,6]
[327665335,1716291063310,-1580.64740534,0.00033205,6]
[327665336,1716291063321,-7.93259466,0.00033205,6]
[327665337,1716291063332,-204.28987425,0.00033315,6]
[327665338,1716291063342,-780.47,0.00033315,6]
[327665339,1716291063352,-500.0,0.00033315,6]
[327665340,1716291063362,-286.98253109,0.00033315,6]
[327665341,1716291063465,-777.17389966,0.00033315,6]
[327665342,1716291063477,-290.91356925,0.00033315,6]
[327665343,1716291063487,-1055.33,0.00033315,6]
[327665344,1716291063497,-500.0,0.00033315,6]
[327665345,1716291063507,-500.0,0.00033315,6]
[327665346,1716291063519,-500.0,0.00033315,6]
[327665347,1716291063528,-1238.66,0.00033315,6]
[327665348,1716291063537,-500.0,0.00033315,6]
[327665349,1716291063547,-831.32,0.00033315,6]
[327665350,1716291063558,-564.63,0.00033315,6]
[327665351,1716291063568,-525.93,0.00033315,6]
[327665352,1716291063578,-500.0,0.00033315,6]
[327665353,1716291063588,-500.0,0.00033315,6]
[327665354,1716291063598,-500.0,0.00033315,6]
[327665355,1716291063608,-500.0,0.00033315,6]
[327665356,1716291063882,-720.6,0.00033315,6]
[327665357,1716291063905,-660.49,0.00033315,6]
[327665358,1716291063916,-614.32,0.00033315,6]
[327665359,1716291063926,-578.04,0.00033315,6]
[327665360,1716291063936,-500.0,0.00033315,6]
[327665361,1716291063946,-669.57,0.00033315,6]
[327665362,1716291063955,-599.25,0.00033315,6]
[327665363,1716291063965,-607.52,0.00033315,6]
[327665364,1716291063975,-885.86,0.00033315,6]
[327665365,1716291063985,-750.72,0.00033315,6]
[327665366,1716291063994,-1040.58,0.00033315,6]
[327665367,1716291064004,-500.19,0.00033315,6]
[327665368,1716291064015,-500.0,0.00033315,6]
[327665369,1716291064025,-765.93,0.00033315,6]
[327665370,1716291064035,-1133.57,0.00033315,6]
[327665371,1716291064044,-1214.5,0.00033315,6]
[327665372,1716291064054,-500.0,0.00033315,6]
[327665373,1716291064063,-748.88,0.00033315,6]
[327665374,1716291064072,-500.0,0.00033315,6]
[327665375,1716291064082,-779.8,0.00033315,6]
[327665376,1716291064091,-654.02,0.00033315,6]
[327665377,1716291064100,-1169.05,0.00033315,6]
[327665378,1716291064110,-1469.08,0.00033315,6]
[327665379,1716291064119,-713.85,0.00033315,6]
[327665380,1716291064130,-500.0,0.00033315,6]
[327665381,1716291064139,-500.0,0.00033315,6]
[327665382,1716291064151,-1050.85,0.00033315,6]
[327665383,1716291064160,-500.0,0.00033315,6]
[327665384,1716291064170,-1701.94,0.00033315,6]
[327665385,1716291064179,-1325.12,0.00033315,6]
[327665386,1716291064188,-500.0,0.00033315,6]
[327665387,1716291064199,-871.49,0.00033315,6]
[327665388,1716291064209,-500.0,0.00033315,6]
[327665389,1716291064218,-1191.66,0.00033315,6]
[327665390,1716291064228,-500.0,0.00033315,6]
[327665391,1716291064238,-648.33,0.00033315,6]
[327665392,1716291064248,-500.0,0.00033315,6]
[327665393,1716291064263,-500.0,0.00033315,6]
[327665394,1716291064273,-694.28,0.00033315,6]
[327665395,1716291064284,-1193.96,0.00033315,6]
[327665396,1716291064294,-1424.94,0.00033315,6]
[327665397,1716291064303,-987.24,0.00033315,6]
[327665398,1716291064312,-512.08,0.00033315,6]
[327665399,1716291064322,-500.0,0.00033315,6]
[327665400,1716291064332,-1109.15,0.00033315,6]
[327665401,1716291064342,-739.04,0.00033315,6]
[327665402,1716291064351,-500.0,0.00033315,6]
[327665403,1716291064362,-500.0,0.00033315,6]
[327665404,1716291064372,-500.0,0.00033315,6]
[327665405,1716291064382,-922.27,0.00033315,6]
[327665406,1716291064392,-1112.34,0.00033315,6]
[327665407,1716291064402,-906.78,0.00033315,6]
[327665408,1716291064413,-886.11,0.00033315,6]
[327665409,1716291064424,-633.22,0.00033315,6]
[327665410,1716291064434,-968.42,0.00033315,6]
[327665411,1716291064444,-666.45,0.00033315,6]
[327665412,1716291064455,-1278.63,0.00033315,6]
[327665413,1716291064465,-500.0,0.00033315,6]
[327665414,1716291064475,-927.71,0.00033315,6]
[327665415,1716291064484,-522.59,0.00033315,6]
[327665416,1716291064493,-1441.81,0.00033315,6]
[327665417,1716291064502,-1041.41,0.00033315,6]
[327665418,1716291064514,-510.96,0.00033315,6]
[327665419,1716291064523,-567.27,0.00033315,6]
[327665420,1716291064533,-1095.24,0.00033315,6]
[327665421,1716291064542,-500.0,0.00033315,6]
[327665422,1716291064552,-687.83,0.00033315,6]
[327665423,1716291064563,-500.0,0.00033315,6]
[327665424,1716291064572,-913.97,0.00033315,6]
[327665425,1716291064582,-500.0,0.00033315,6]
[327665426,1716291064593,-2023.13,0.00033315,6]
[327665427,1716291064604,-1202.56,0.00033315,6]
[327665428,1716291064617,-1032.05,0.00033315,6]
[327665429,1716291064628,-500.0,0.00033315,6]
[327665430,1716291064639,-879.65,0.00033315,6]
[327665431,1716291064650,-1202.36,0.00033315,6]
[327665432,1716291064662,-2019.13,0.00033315,6]
[327665433,1716291064672,-1118.5,0.00033315,6]
[327665434,1716291064681,-1678.3,0.00033315,6]
[327665435,1716291064694,-567.92,0.00033315,6]
[327665436,1716291064703,-1701.58,0.00033315,6]
[327665437,1716291064713,-3042.77,0.00033315,6]
[327665438,1716291064722,-500.0,0.00033315,6]
[327665439,1716291064734,-500.0,0.00033315,6]
[327665440,1716291064743,-799.4,0.00033315,6]
[327665441,1716291064753,-500.0,0.00033315,6]
[327665442,1716291064764,-1387.86,0.00033315,6]
[327665443,1716291064774,-1032.3,0.00033315,6]
[327665444,1716291064785,-9918.7,0.00033315,6]
[327665445,1716291064795,-500.0,0.00033315,6]
[327665446,1716291064806,-500.0,0.00033315,6]
[327665447,1716291064816,-1560.23,0.00033315,6]
[327665448,1716291064826,-570.7,0.00033315,6]
[327665449,1716291064835,-500.0,0.00033315,6]
[327665450,1716291064845,-500.0,0.00033315,6]
[327665451,1716291064855,-510.41,0.00033315,6]
[327665452,1716291064864,-500.0,0.00033315,6]
[327665453,1716291064874,-2881.72,0.00033315,6]
[327665454,1716291064883,-1539.47,0.00033315,6]
[327665455,1716291064892,-1230.29,0.00033315,6]
[327665456,1716291064902,-1587.89,0.00033315,6]
[327665457,1716291064911,-827.83,0.00033315,6]
[327665458,1716291064921,-2149.87,0.00033315,6]
[327665459,1716291064930,-486.03,0.00033315,6]
[327665460,1716291064940,-1818.33,0.00033315,6]
[327665461,1716291064949,-1664.96,0.00033315,6]
[327665462,1716291064959,-500.0,0.00033315,6]
[327665463,1716291064968,-10289.26,0.00033315,6]
[327665464,1716291064978,-1393.08,0.00033315,6]
[327665465,1716291064987,-718.55,0.00033315,6]
[327665466,1716291064997,-1382.61,0.00033315,6]
[327665467,1716291065006,-966.19,0.00033315,6]
[327665468,1716291065019,-7073.63,0.00033315,6]
[327665469,1716291065029,-2970.16,0.00033315,6]
[327665470,1716291065038,-1919.39,0.00033315,6]
[327665471,1716291065048,-802.52,0.00033315,6]
[327665472,1716291065057,-1163.31,0.00033315,6]
[327665473,1716291065068,-1570.45,0.00033315,6]
[327665474,1716291065077,-1744.34,0.00033315,6]
[327665475,1716291065088,-500.0,0.00033315,6]
[327665476,1716291065097,-2152.68,0.00033315,6]
[327665477,1716291065107,-929.42,0.00033315,6]
[327665478,1716291065117,-500.0,0.00033315,6]
[327665479,1716291065127,-8045.38,0.00033315,6]
[327665480,1716291065136,-3088.9,0.00033315,6]
[327665481,1716291065146,-1331.09,0.00033315,6]
[327665482,1716291065155,-1060.15,0.00033315,6]
[327665483,1716291065165,-500.0,0.00033315,6]
[327665484,1716291065175,-1146.57,0.00033315,6]
[327665485,1716291065185,-2303.35,0.00033315,6]
[327665486,1716291065194,-1223.19,0.00033315,6]
[327665487,1716291065204,-500.0,0.00033315,6]
[327665488,1716291065213,-500.0,0.00033315,6]
[327665489,1716291065222,-500.0,0.00033315,6]
[327665490,1716291065232,-314.34233082,0.00033315,6]
[327665491,1716291065242,-676.3,0.00033315,6]
[327665492,1716291065253,-4145.22,0.00033315,6]
[327665493,1716291065264,-2570.19,0.00033315,6]
[327665494,1716291065275,-626.31,0.00033315,6]
[327665495,1716291065284,-5364.66,0.00033315,6]
[327665496,1716291065294,-6984.37,0.00033315,6]
[327665497,1716291065304,-1599.09,0.00033315,6]
[327665498,1716291065314,-500.0,0.00033315,6]
[327665499,1716291065323,-942.14,0.00033315,6]
[327665500,1716291065332,-689.97,0.00033315,6]
[327665501,1716291065341,-1418.88,0.00033315,6]
[327665502,1716291065351,-3692.28,0.00033315,6]
[327665503,1716291065360,-500.0,0.00033315,6]
[327665504,1716291065369,-509.53,0.00033315,6]
[327665505,1716291065390,-6968.22,0.00033315,6]
[327665506,1716291065404,-500.0,0.00033315,6]
[327665507,1716291065427,-500.0,0.00033315,6]
[327665508,1716291065437,-355.55931866,0.00033315,6]
[327665509,1716291065446,-500.0,0.00033315,6]
[327665510,1716291065456,-500.0,0.00033315,6]
[327665511,1716291065466,-3478.64,0.00033315,6]
[327665512,1716291065475,-5325.1,0.00033315,6]
[327665513,1716291065485,-1000.13,0.00033315,6]
[327665514,1716291065494,-686.54,0.00033315,6]
[327665515,1716291065504,-4452.95,0.00033315,6]
[327665516,1716291065515,-1958.88,0.00033315,6]
[327665517,1716291065524,-12875.53,0.00033315,6]
[327665518,1716291065534,-3223.22,0.00033315,6]
[327665519,1716291065543,-507.68,0.00033315,6]
[327665520,1716291065553,-2260.18,0.00033315,6]
[327665521,1716291065562,-802.75,0.00033315,6]
[327665522,1716291065571,-500.0,0.00033315,6]
[327665523,1716291065581,-1830.99,0.00033315,6]
[327665524,1716291065591,-1094.45,0.00033315,6]
[327665525,1716291065600,-500.0,0.00033315,6]
[327665526,1716291065610,-1349.13,0.00033315,6]
[327665527,1716291065621,-500.0,0.00033315,6]
[327665528,1716291065636,-3067.89,0.00033315,6]
[327665529,1716291065646,-2569.11,0.00033315,6]
[327665530,1716291065656,-513.03,0.00033315,6]
[327665531,1716291065666,-500.0,0.00033315,6]
[327665532,1716291065677,-1618.62,0.00033315,6]
[327665533,1716291065687,-518.15,0.00033315,6]
[327665534,1716291065696,-500.0,0.00033315,6]
[327665535,1716291065711,-1596.78,0.00033315,6]
[327665536,1716291065721,-1131.22,0.00033315,6]
[327665537,1716291065731,-961.79,0.00033315,6]
[327665538,1716291065742,-686.26,0.00033315,6]
[327665539,1716291065751,-500.0,0.00033315,6]
[327665540,1716291065761,-500.0,0.00033315,6]
[327665541,1716291065772,-663.94,0.00033315,6]
[327665542,1716291065782,-2042.42,0.00033315,6]
[327665543,1716291065793,-3508.44,0.00033315,6]
[327665544,1716291065803,-2559.66,0.00033315,6]
[327665545,1716291065812,-2144.2,0.00033315,6]
[327665546,1716291065821,-3088.3,0.00033315,6]
[327665547,1716291065831,-500.0,0.00033315,6]
[327665548,1716291065841,-541.58,0.00033315,6]
[327665549,1716291065851,-857.6,0.00033315,6]
[327665550,1716291065860,-2771.03,0.00033315,6]
[327665551,1716291065870,-500.0,0.00033315,6]
[327665552,1716291065879,-722.94,0.00033315,6]
[327665553,1716291065889,-976.39,0.00033315,6]
[327665554,1716291065899,-20774.01,0.00033315,6]
[327665555,1716291065909,-517.4,0.00033315,6]
[327665556,1716291065918,-2952.08,0.00033315,6]
[327665557,1716291065928,-500.0,0.00033315,6]
[327665558,1716291065938,-2359.71,0.00033315,6]
[327665559,1716291065948,-500.0,0.00033315,6]
[327665560,1716291065958,-1971.69,0.00033315,6]
[327665561,1716291065967,-1229.51,0.00033315,6]
[327665562,1716291065977,-1127.28,0.00033315,6]
[327665563,1716291065987,-549.85,0.00033315,6]
[327665564,1716291065997,-1075.86,0.00033315,6]
[327665565,1716291066007,-1806.28,0.00033315,6]
[327665566,1716291066019,-500.0,0.00033315,6]
[327665567,1716291066028,-2374.57,0.00033315,6]
[327665568,1716291066038,-4545.76,0.00033315,6]
[327665569,1716291066048,-2269.94,0.00033315,6]
[327665570,1716291066058,-3166.66,0.00033315,6]
[327665571,1716291066068,-500.0,0.00033315,6]
[327665572,1716291066077,-500.0,0.00033315,6]
[327665573,1716291066087,-2075.28,0.00033315,6]
[327665574,1716291066097,-514.28,0.00033315,6]
[327665575,1716291066107,-52301.07,0.00033315,6]
[327665576,1716291066117,-1796.5,0.00033315,6]
[327665577,1716291066127,-500.0,0.00033315,6]
[327665578,1716291066136,-500.0,0.00033315,6]
[327665579,1716291066146,-5522.34,0.00033315,6]
[327665580,1716291066155,-500.0,0.00033315,6]
[327665581,1716291066165,-590.89,0.00033315,6]
[327665582,1716291066175,-500.0,0.00033315,6]
[327665583,1716291066184,-500.0,0.00033315,6]
[327665584,1716291066194,-1642.84,0.00033315,6]
[327665585,1716291066204,-500.0,0.00033315,6]
[327665586,1716291066214,-1214.58,0.00033315,6]
[327665587,1716291066223,-2780.51,0.00033315,6]
[327665588,1716291066233,-500.0,0.00033315,6]
[327665589,1716291066242,-1043.71,0.00033315,6]
[327665590,1716291066252,-9822.52,0.00033315,6]
[327665591,1716291066261,-4048.99,0.00033315,6]
[327665592,1716291066270,-1329.98,0.00033315,6]
[327665593,1716291066395,-500.0,0.00033315,6]
[327665594,1716291066404,-4258.01,0.00033315,6]
[327665595,1716291066413,-500.0,0.00033315,6]
[327665596,1716291066423,-500.0,0.00033315,6]
[327665597,1716291066432,-4740.41,0.00033315,6]
[327665598,1716291066441,-500.0,0.00033315,6]
[327665599,1716291066450,-1588.58,0.00033315,6]
[327665600,1716291066460,-210.86154424,0.00033324,5]
[327665601,1716291066469,-154.95516001,0.0003334,7]
[327665602,1716291066478,-800.0,0.00033397,2]
[327665603,1716291066488,-161.73963544,0.00033422,4]
[327665604,1716291066497,-155.87534411,0.00033423,4]
[327665605,1716291066505,-500.0,0.00033423,6]
[327665606,1716291066516,-500.0,0.00033423,6]
[327665607,1716291066525,-520.83,0.00033423,6]
[327665608,1716291066535,-1056.66,0.00033423,6]
[327665609,1716291066544,-616.0,0.00033423,6]
[327665610,1716291066556,-500.0,0.00033423,6]
[327665611,1716291066566,-500.0,0.00033423,6]
[327665612,1716291066575,-500.0,0.00033423,6]
[327665613,1716291066585,-500.0,0.00033423,6]
[327665614,1716291066595,-539.3,0.00033423,6]
[327665615,1716291066605,-579.47,0.00033423,6]
[327665616,1716291066614,-500.0,0.00033423,6]
[327665617,1716291066628,-576.73,0.00033423,6]
[327665618,1716291066637,-800.63,0.00033423,6]
[327665619,1716291066647,-500.0,0.00033423,6]
[327665620,1716291066657,-500.0,0.00033423,6]
[327665621,1716291066667,-500.0,0.00033423,6]
[327665622,1716291066676,-937.76,0.00033423,6]
[327665623,1716291066686,-612.13,0.00033423,6]
[327665624,1716291066699,-511.23,0.00033423,6]
[327665625,1716291066708,-500.0,0.00033423,6]
[327665626,1716291066717,-500.0,0.00033423,6]
[327665627,1716291066727,-581.57,0.00033423,6]
[327665628,1716291066736,-597.74,0.00033423,6]
[327665629,1716291066747,-883.63,0.00033423,6]